[Event "Titled Tuesday Blitz July 18 Early 2023"]
[White "Zomorrodian, Eilia"]
[Black "Rakhmanov, Aleksandr"]
[WhiteFideId "12551805"]
[BlackFideId "4173708"]
[WhiteElo "2644"]
[BlackElo "2858"]
[Result "0-1"]
[Round "3"]
[TimeControl "180+2"]
[Date "2023.07.18"]
[WhiteClock "0:00:04"]
[BlackClock "0:00:22"]
[Board "28"]

1. e4 {[%clk 0:03:00]}  c5 {[%clk 0:02:57]} 2. Nf3 {[%clk 0:03:01]}  Nf6 {[%clk 0:02:57]} 3. e5 {[%clk 0:03:00]}  Nd5 {[%clk 0:02:55]} 4. c3 {[%clk 0:03:01]}  g6 {[%clk 0:02:49]} 5. d4 {[%clk 0:03:01]}  cxd4 {[%clk 0:02:36]} 6. cxd4 {[%clk 0:03:02]}  Bg7 {[%clk 0:02:30]} 7. Bc4 {[%clk 0:03:02]}  Nb6 {[%clk 0:02:30]} 8. Bb3 {[%clk 0:02:45]}  O-O {[%clk 0:02:30]} 9. O-O {[%clk 0:02:46]}  d6 {[%clk 0:02:29]} 10. Qe2 {[%clk 0:02:40]}  Bg4 {[%clk 0:02:25]} 11. Nbd2 {[%clk 0:02:39]}  Nc6 {[%clk 0:02:22]} 12. Qe4 {[%clk 0:02:35]}  Bf5 {[%clk 0:02:06]} 13. Qe2 {[%clk 0:02:25]}  dxe5 {[%clk 0:02:03]} 14. dxe5 {[%clk 0:02:23]}  Bd3 {[%clk 0:02:01]} 15. Qe1 {[%clk 0:02:18]}  e6 {[%clk 0:01:47]} 16. h4 {[%clk 0:01:59]}  Qc7 {[%clk 0:01:41]} 17. h5 {[%clk 0:01:48]}  Bxf1 {[%clk 0:01:28]} 18. Nxf1 {[%clk 0:01:48]}  Nxe5 {[%clk 0:01:28]} 19. Ng5 {[%clk 0:01:35]}  h6 {[%clk 0:01:26]} 20. Ne4 {[%clk 0:01:31]}  g5 {[%clk 0:01:25]} 21. Bd2 {[%clk 0:01:23]}  Rfd8 {[%clk 0:01:16]} 22. Ne3 {[%clk 0:01:19]}  Nd5 {[%clk 0:01:14]} 23. Nxd5 {[%clk 0:01:16]}  exd5 {[%clk 0:01:15]} 24. Ng3 {[%clk 0:01:17]}  Nd3 {[%clk 0:01:12]} 25. Qe2 {[%clk 0:01:02]}  Nf4 {[%clk 0:01:10]} 26. Bxf4 {[%clk 0:00:59]}  Qxf4 {[%clk 0:01:07]} 27. Bc2 {[%clk 0:00:55]}  Qc4 {[%clk 0:00:48]} 28. Bd3 {[%clk 0:00:51]}  Qd4 {[%clk 0:00:37]} 29. Nf5 {[%clk 0:00:47]}  Qxb2 {[%clk 0:00:33]} 30. Nxh6+ {[%clk 0:00:35]}  Kf8 {[%clk 0:00:29]} 31. Qxb2 {[%clk 0:00:34]}  Bxb2 {[%clk 0:00:30]} 32. Rb1 {[%clk 0:00:35]}  Bg7 {[%clk 0:00:29]} 33. Nf5 {[%clk 0:00:36]}  b6 {[%clk 0:00:29]} 34. h6 {[%clk 0:00:34]}  Bh8 {[%clk 0:00:29]} 35. Ba6 {[%clk 0:00:26]}  Rd7 {[%clk 0:00:28]} 36. Rc1 {[%clk 0:00:20]}  d4 {[%clk 0:00:27]} 37. Bd3 {[%clk 0:00:14]}  Rad8 {[%clk 0:00:26]} 38. g4 {[%clk 0:00:14]}  Rd5 {[%clk 0:00:22]} 39. Rc7 {[%clk 0:00:14]}  Rc5 {[%clk 0:00:23]} 40. Rxa7 {[%clk 0:00:13]}  Rc3 {[%clk 0:00:23]} 41. Be2 {[%clk 0:00:03]}  d3 {[%clk 0:00:23]} 42. Bd1 {[%clk 0:00:04]}  Rc1 {[%clk 0:00:22]} 43. Ne3 {[%clk 0:00:04]}  Bd4 {[%clk 0:00:22]} 0-1


[Site "https://www.chess.com"]

[Event "Titled Tuesday Blitz July 18 Early 2023"]
[White "KhalilMousavi98"]
[Black "Jeet, Jain"]
[BlackFideId "5073022"]
[WhiteElo "2850"]
[BlackElo "2641"]
[Result "0-1"]
[Round "3"]
[TimeControl "180+2"]
[Date "2023.07.18"]
[WhiteClock "0:00:00"]
[BlackClock "0:00:28"]
[Board "30"]

1. e4 {[%clk 0:02:56]}  c6 {[%clk 0:02:59]} 2. d4 {[%clk 0:02:56]}  d5 {[%clk 0:03:00]} 3. f3 {[%clk 0:02:56]}  g6 {[%clk 0:02:57]} 4. Nc3 {[%clk 0:02:48]}  a6 {[%clk 0:02:55]} 5. Be3 {[%clk 0:02:43]}  h5 {[%clk 0:02:48]} 6. Qd2 {[%clk 0:02:38]}  b5 {[%clk 0:02:43]} 7. h4 {[%clk 0:02:37]}  Nf6 {[%clk 0:02:39]} 8. e5 {[%clk 0:02:36]}  Ng8 {[%clk 0:02:39]} 9. Nh3 {[%clk 0:02:33]}  Bh6 {[%clk 0:02:33]} 10. Bxh6 {[%clk 0:02:29]}  Nxh6 {[%clk 0:02:32]} 11. Bd3 {[%clk 0:02:26]}  Bxh3 {[%clk 0:02:31]} 12. Rxh3 {[%clk 0:02:26]}  e6 {[%clk 0:02:30]} 13. Ne2 {[%clk 0:02:21]}  c5 {[%clk 0:02:29]} 14. c3 {[%clk 0:02:07]}  Nc6 {[%clk 0:02:24]} 15. Kf2 {[%clk 0:01:45]}  Qb6 {[%clk 0:02:21]} 16. b4 {[%clk 0:01:32]}  cxd4 {[%clk 0:02:17]} 17. cxd4 {[%clk 0:01:32]}  Nxe5 {[%clk 0:02:17]} 18. Rc1 {[%clk 0:01:23]}  Nxd3+ {[%clk 0:02:09]} 19. Qxd3 {[%clk 0:01:21]}  Ke7 {[%clk 0:02:06]} 20. Rc5 {[%clk 0:01:21]}  Rac8 {[%clk 0:02:02]} 21. Rh1 {[%clk 0:01:21]}  Rxc5 {[%clk 0:01:58]} 22. dxc5 {[%clk 0:01:22]}  Qc7 {[%clk 0:01:57]} 23. Rc1 {[%clk 0:01:19]}  Nf5 {[%clk 0:01:56]} 24. a4 {[%clk 0:01:13]}  Rb8 {[%clk 0:01:52]} 25. a5 {[%clk 0:00:54]}  Nxh4 {[%clk 0:01:50]} 26. c6 {[%clk 0:00:52]}  Nf5 {[%clk 0:01:49]} 27. Qc3 {[%clk 0:00:43]}  Kf8 {[%clk 0:01:35]} 28. Qh8+ {[%clk 0:00:38]}  Ke7 {[%clk 0:01:36]} 29. Qc3 {[%clk 0:00:39]}  Nd6 {[%clk 0:01:30]} 30. Qc5 {[%clk 0:00:35]}  Kf8 {[%clk 0:01:28]} 31. Nd4 {[%clk 0:00:29]}  Kg8 {[%clk 0:01:26]} 32. Re1 {[%clk 0:00:15]}  Nf5 {[%clk 0:01:09]} 33. Nxf5 {[%clk 0:00:05]}  gxf5 {[%clk 0:01:10]} 34. Rh1 {[%clk 0:00:04]}  Rc8 {[%clk 0:01:08]} 35. Rc1 {[%clk 0:00:03]}  h4 {[%clk 0:01:04]} 36. Qb6 {[%clk 0:00:01]}  Qf4 {[%clk 0:01:03]} 37. Rc2 {[%clk 0:00:01]}  d4 {[%clk 0:00:58]} 38. c7 {[%clk 0:00:01]}  Qe3+ {[%clk 0:00:57]} 39. Kf1 {[%clk 0:00:01]}  Qd3+ {[%clk 0:00:55]} 40. Re2 {[%clk 0:00:02]}  Qc4 {[%clk 0:00:52]} 41. Qxa6 {[%clk 0:00:01]}  Rxc7 {[%clk 0:00:49]} 42. Qd6 {[%clk 0:00:02]}  Rc8 {[%clk 0:00:39]} 43. Kf2 {[%clk 0:00:01]}  Qc7 {[%clk 0:00:32]} 44. Qxd4 {[%clk 0:00:01]}  Qg3+ {[%clk 0:00:32]} 45. Ke3 {[%clk 0:00:00]}  Rc4 {[%clk 0:00:28]} 0-1


[Site "https://www.chess.com"]

[Event "Titled Tuesday Blitz July 18 Early 2023"]
[White "Harsh Suresh"]
[Black "Arat, Ufuk Sezen"]
[WhiteFideId "45018464"]
[BlackFideId "6309089"]
[WhiteElo "2838"]
[BlackElo "2598"]
[Result "1-0"]
[Round "3"]
[TimeControl "180+2"]
[Date "2023.07.18"]
[WhiteClock "0:00:46"]
[BlackClock "0:00:09"]
[Board "34"]

1. e4 {[%clk 0:03:00]}  c5 {[%clk 0:02:59]} 2. Nc3 {[%clk 0:03:01]}  e6 {[%clk 0:02:59]} 3. Nge2 {[%clk 0:02:52]}  Nc6 {[%clk 0:02:58]} 4. g3 {[%clk 0:02:47]}  d5 {[%clk 0:02:59]} 5. exd5 {[%clk 0:02:46]}  exd5 {[%clk 0:02:59]} 6. d4 {[%clk 0:02:46]}  cxd4 {[%clk 0:02:59]} 7. Nxd4 {[%clk 0:02:45]}  Nf6 {[%clk 0:02:58]} 8. Bg2 {[%clk 0:02:44]}  Bg4 {[%clk 0:02:57]} 9. Nde2 {[%clk 0:02:27]}  Bc5 {[%clk 0:02:54]} 10. O-O {[%clk 0:02:25]}  O-O {[%clk 0:02:55]} 11. Bg5 {[%clk 0:02:17]}  d4 {[%clk 0:02:52]} 12. Ne4 {[%clk 0:02:00]}  Be7 {[%clk 0:02:52]} 13. Nxf6+ {[%clk 0:02:00]}  Bxf6 {[%clk 0:02:52]} 14. Bxf6 {[%clk 0:02:00]}  Qxf6 {[%clk 0:02:53]} 15. Qd2 {[%clk 0:02:00]}  Rad8 {[%clk 0:02:48]} 16. Nc1 {[%clk 0:01:56]}  Ne5 {[%clk 0:02:47]} 17. Nd3 {[%clk 0:01:56]}  Nf3+ {[%clk 0:02:43]} 18. Bxf3 {[%clk 0:01:56]}  Bxf3 {[%clk 0:02:44]} 19. Qf4 {[%clk 0:01:55]}  Qxf4 {[%clk 0:02:24]} 20. Nxf4 {[%clk 0:01:54]}  Rc8 {[%clk 0:02:25]} 21. Rac1 {[%clk 0:01:53]}  Be4 {[%clk 0:02:23]} 22. Rfd1 {[%clk 0:01:51]}  Rfd8 {[%clk 0:02:18]} 23. Rd2 {[%clk 0:01:49]}  g5 {[%clk 0:02:02]} 24. Ne2 {[%clk 0:01:48]}  d3 {[%clk 0:01:25]} 25. cxd3 {[%clk 0:01:47]}  Bf3 {[%clk 0:01:20]} 26. Rxc8 {[%clk 0:01:41]}  Rxc8 {[%clk 0:01:19]} 27. Nc3 {[%clk 0:01:42]}  b5 {[%clk 0:01:18]} 28. Kf1 {[%clk 0:01:35]}  b4 {[%clk 0:01:17]} 29. Ne2 {[%clk 0:01:35]}  a5 {[%clk 0:00:56]} 30. d4 {[%clk 0:01:34]}  Bd5 {[%clk 0:00:55]} 31. b3 {[%clk 0:01:28]}  a4 {[%clk 0:00:54]} 32. bxa4 {[%clk 0:01:24]}  Ra8 {[%clk 0:00:55]} 33. Rb2 {[%clk 0:01:21]}  Rxa4 {[%clk 0:00:55]} 34. Nc1 {[%clk 0:01:22]}  Kf8 {[%clk 0:00:52]} 35. Ke2 {[%clk 0:01:21]}  Ke7 {[%clk 0:00:47]} 36. Nd3 {[%clk 0:01:18]}  Bc4 {[%clk 0:00:29]} 37. Kd2 {[%clk 0:01:13]}  Rxa2 {[%clk 0:00:21]} 38. Rxa2 {[%clk 0:01:13]}  Bxa2 {[%clk 0:00:22]} 39. Nxb4 {[%clk 0:01:14]}  Bc4 {[%clk 0:00:22]} 40. Ke3 {[%clk 0:01:09]}  f5 {[%clk 0:00:22]} 41. f4 {[%clk 0:01:05]}  g4 {[%clk 0:00:20]} 42. Kd2 {[%clk 0:00:52]}  Kd6 {[%clk 0:00:20]} 43. Kc3 {[%clk 0:00:53]}  Bf1 {[%clk 0:00:20]} 44. Nc2 {[%clk 0:00:52]}  Ba6 {[%clk 0:00:19]} 45. Ne3 {[%clk 0:00:52]}  Bc8 {[%clk 0:00:20]} 46. Kc4 {[%clk 0:00:52]}  Be6+ {[%clk 0:00:21]} 47. d5 {[%clk 0:00:52]}  Bc8 {[%clk 0:00:21]} 48. Kd4 {[%clk 0:00:52]}  Bd7 {[%clk 0:00:09]} 49. Nc4+ {[%clk 0:00:52]}  Ke7 {[%clk 0:00:10]} 50. Ke5 {[%clk 0:00:52]}  Bc8 {[%clk 0:00:10]} 51. Ne3 {[%clk 0:00:52]}  Bd7 {[%clk 0:00:10]} 52. Nxf5+ {[%clk 0:00:53]}  Kf7 {[%clk 0:00:09]} 53. Ne3 {[%clk 0:00:52]}  h5 {[%clk 0:00:10]} 54. d6 {[%clk 0:00:51]}  Kg6 {[%clk 0:00:10]} 55. Nd5 {[%clk 0:00:49]}  Kf7 {[%clk 0:00:11]} 56. Nf6 {[%clk 0:00:47]}  Bc8 {[%clk 0:00:09]} 57. d7 {[%clk 0:00:46]} 1-0


[Site "https://www.chess.com"]

[Event "Titled Tuesday Blitz July 18 Early 2023"]
[White "Leon Oquendo, Jorge"]
[Black "Pakleza, Zbigniew"]
[WhiteFideId "3514803"]
[BlackFideId "1119290"]
[WhiteElo "2598"]
[BlackElo "2816"]
[Result "1-0"]
[Round "3"]
[TimeControl "180+2"]
[Date "2023.07.18"]
[WhiteClock "0:00:20"]
[BlackClock "0:00:07"]
[Board "35"]

1. d4 {[%clk 0:02:59]}  d6 {[%clk 0:02:56]} 2. c4 {[%clk 0:02:58]}  e5 {[%clk 0:02:56]} 3. dxe5 {[%clk 0:02:56]}  dxe5 {[%clk 0:02:57]} 4. Qxd8+ {[%clk 0:02:56]}  Kxd8 {[%clk 0:02:58]} 5. Nc3 {[%clk 0:02:55]}  Be6 {[%clk 0:02:58]} 6. b3 {[%clk 0:02:54]}  c6 {[%clk 0:02:57]} 7. Bb2 {[%clk 0:02:55]}  f6 {[%clk 0:02:57]} 8. O-O-O+ {[%clk 0:02:55]}  Kc7 {[%clk 0:02:58]} 9. Nf3 {[%clk 0:02:55]}  Nh6 {[%clk 0:02:53]} 10. h3 {[%clk 0:02:54]}  Nd7 {[%clk 0:02:52]} 11. g4 {[%clk 0:02:52]}  Nf7 {[%clk 0:02:50]} 12. e3 {[%clk 0:02:52]}  a5 {[%clk 0:02:48]} 13. Be2 {[%clk 0:02:48]}  Nc5 {[%clk 0:02:46]} 14. Nd2 {[%clk 0:02:30]}  a4 {[%clk 0:02:36]} 15. Nce4 {[%clk 0:02:10]}  axb3 {[%clk 0:02:33]} 16. axb3 {[%clk 0:02:09]}  Nxe4 {[%clk 0:01:57]} 17. Nxe4 {[%clk 0:02:10]}  b5 {[%clk 0:01:56]} 18. Rd2 {[%clk 0:01:54]}  Bb4 {[%clk 0:01:50]} 19. Rc2 {[%clk 0:01:53]}  Kb6 {[%clk 0:01:27]} 20. Rd1 {[%clk 0:01:48]}  Rhd8 {[%clk 0:01:26]} 21. Rxd8 {[%clk 0:01:41]}  Rxd8 {[%clk 0:01:27]} 22. Bc3 {[%clk 0:01:34]}  Bxc3 {[%clk 0:01:17]} 23. Rxc3 {[%clk 0:01:32]}  Ng5 {[%clk 0:00:57]} 24. Nxg5 {[%clk 0:01:17]}  fxg5 {[%clk 0:00:58]} 25. cxb5 {[%clk 0:01:03]}  cxb5 {[%clk 0:00:55]} 26. b4 {[%clk 0:01:03]}  Bc4 {[%clk 0:00:27]} 27. Bxc4 {[%clk 0:00:35]}  Rc8 {[%clk 0:00:27]} 28. Kc2 {[%clk 0:00:26]}  bxc4 {[%clk 0:00:19]} 29. Ra3 {[%clk 0:00:26]}  Rf8 {[%clk 0:00:18]} 30. Kc3 {[%clk 0:00:25]}  Rxf2 {[%clk 0:00:18]} 31. Kxc4 {[%clk 0:00:25]}  Rf3 {[%clk 0:00:14]} 32. Kd5 {[%clk 0:00:19]}  Rxh3 {[%clk 0:00:13]} 33. Kxe5 {[%clk 0:00:19]}  Rg3 {[%clk 0:00:12]} 34. Kf5 {[%clk 0:00:20]}  h6 {[%clk 0:00:13]} 35. e4 {[%clk 0:00:20]}  Rf3+ {[%clk 0:00:07]} 36. Rxf3 {[%clk 0:00:20]} 1-0


[Site "https://www.chess.com"]

[Event "Titled Tuesday Blitz July 18 Early 2023"]
[White "Wagner, Dennis"]
[Black "Aggelis, Nikolaos"]
[WhiteFideId "24650684"]
[BlackFideId "4213220"]
[WhiteElo "2776"]
[BlackElo "2583"]
[Result "1-0"]
[Round "3"]
[TimeControl "180+2"]
[Date "2023.07.18"]
[WhiteClock "0:00:06"]
[BlackClock "0:00:00"]
[Board "37"]

1. d4 {[%clk 0:03:00]}  f5 {[%clk 0:02:54]} 2. Nf3 {[%clk 0:03:00]}  Nf6 {[%clk 0:02:53]} 3. c4 {[%clk 0:03:00]}  g6 {[%clk 0:02:53]} 4. Nc3 {[%clk 0:02:56]}  Bg7 {[%clk 0:02:53]} 5. b4 {[%clk 0:02:55]}  O-O {[%clk 0:02:52]} 6. e3 {[%clk 0:02:56]}  d6 {[%clk 0:02:52]} 7. Bb2 {[%clk 0:02:55]}  c6 {[%clk 0:02:48]} 8. Be2 {[%clk 0:02:56]}  Nbd7 {[%clk 0:02:29]} 9. Qb3 {[%clk 0:02:54]}  Kh8 {[%clk 0:02:29]} 10. c5 {[%clk 0:02:37]}  Qe8 {[%clk 0:02:20]} 11. O-O {[%clk 0:02:04]}  dxc5 {[%clk 0:02:02]} 12. bxc5 {[%clk 0:01:33]}  e5 {[%clk 0:02:02]} 13. Nxe5 {[%clk 0:01:33]}  Nxe5 {[%clk 0:02:02]} 14. dxe5 {[%clk 0:01:34]}  Qxe5 {[%clk 0:02:02]} 15. Nb5 {[%clk 0:01:20]}  Qe7 {[%clk 0:01:47]} 16. Nd6 {[%clk 0:01:19]}  Be6 {[%clk 0:01:40]} 17. Bc4 {[%clk 0:01:19]}  Bxc4 {[%clk 0:01:37]} 18. Qxc4 {[%clk 0:01:20]}  b5 {[%clk 0:01:29]} 19. Qe2 {[%clk 0:01:07]}  Ne4 {[%clk 0:01:16]} 20. Bxg7+ {[%clk 0:01:06]}  Qxg7 {[%clk 0:01:17]} 21. Rac1 {[%clk 0:00:54]}  Rad8 {[%clk 0:01:13]} 22. Rfd1 {[%clk 0:00:52]}  Nc3 {[%clk 0:00:55]} 23. Rxc3 {[%clk 0:00:36]}  Qxc3 {[%clk 0:00:56]} 24. Nf7+ {[%clk 0:00:36]}  Rxf7 {[%clk 0:00:54]} 25. Rxd8+ {[%clk 0:00:36]}  Kg7 {[%clk 0:00:55]} 26. h4 {[%clk 0:00:28]}  Rf8 {[%clk 0:00:28]} 27. Rd7+ {[%clk 0:00:26]}  Rf7 {[%clk 0:00:28]} 28. Rd6 {[%clk 0:00:22]}  Qxc5 {[%clk 0:00:20]} 29. Qb2+ {[%clk 0:00:23]}  Kh6 {[%clk 0:00:21]} 30. Qd2 {[%clk 0:00:20]}  Qe5 {[%clk 0:00:14]} 31. Rxc6 {[%clk 0:00:17]}  f4 {[%clk 0:00:14]} 32. Rc3 {[%clk 0:00:05]}  fxe3 {[%clk 0:00:12]} 33. Rxe3 {[%clk 0:00:06]}  Qf4 {[%clk 0:00:00]} 34. g3 {[%clk 0:00:06]} 1-0


[Site "https://www.chess.com"]

[Event "Titled Tuesday Blitz July 18 Early 2023"]
[White "Mahdavi, Reza"]
[Black "Kashlinskaya, Alina"]
[WhiteFideId "12595926"]
[BlackFideId "4198026"]
[WhiteElo "2772"]
[BlackElo "2580"]
[Result "1-0"]
[Round "3"]
[TimeControl "180+2"]
[Date "2023.07.18"]
[WhiteClock "0:00:10"]
[BlackClock "0:00:06"]
[Board "39"]

1. e4 {[%clk 0:03:00]}  c6 {[%clk 0:02:58]} 2. d4 {[%clk 0:03:00]}  d5 {[%clk 0:02:58]} 3. e5 {[%clk 0:02:59]}  Bf5 {[%clk 0:02:58]} 4. Nf3 {[%clk 0:03:00]}  e6 {[%clk 0:02:59]} 5. Be2 {[%clk 0:03:00]}  Ne7 {[%clk 0:02:58]} 6. O-O {[%clk 0:03:01]}  h6 {[%clk 0:02:58]} 7. a4 {[%clk 0:03:01]}  g5 {[%clk 0:02:54]} 8. Be3 {[%clk 0:03:00]}  Bg7 {[%clk 0:02:54]} 9. c3 {[%clk 0:02:58]}  Nd7 {[%clk 0:02:53]} 10. Nbd2 {[%clk 0:02:56]}  Qc7 {[%clk 0:02:44]} 11. a5 {[%clk 0:02:55]}  f6 {[%clk 0:02:39]} 12. exf6 {[%clk 0:02:55]}  Bxf6 {[%clk 0:02:35]} 13. c4 {[%clk 0:02:56]}  g4 {[%clk 0:02:26]} 14. Ne1 {[%clk 0:02:56]}  h5 {[%clk 0:02:27]} 15. Nd3 {[%clk 0:02:54]}  e5 {[%clk 0:02:19]} 16. dxe5 {[%clk 0:02:49]}  Nxe5 {[%clk 0:02:19]} 17. Nxe5 {[%clk 0:02:43]}  Bxe5 {[%clk 0:02:20]} 18. f4 {[%clk 0:02:37]}  Bxb2 {[%clk 0:02:13]} 19. Ra2 {[%clk 0:02:32]}  Bc3 {[%clk 0:02:11]} 20. Nb3 {[%clk 0:02:29]}  O-O {[%clk 0:02:03]} 21. Nd4 {[%clk 0:02:21]}  Rae8 {[%clk 0:01:57]} 22. Qb3 {[%clk 0:02:20]}  Bxa5 {[%clk 0:01:52]} 23. c5 {[%clk 0:01:32]}  Be4 {[%clk 0:01:45]} 24. Ne6 {[%clk 0:01:30]}  Qc8 {[%clk 0:01:35]} 25. Nxf8 {[%clk 0:01:30]}  Bc7 {[%clk 0:01:35]} 26. Rxa7 {[%clk 0:01:25]}  Rxf8 {[%clk 0:01:35]} 27. Qxb7 {[%clk 0:01:25]}  Nf5 {[%clk 0:01:28]} 28. Qxc8 {[%clk 0:00:47]}  Rxc8 {[%clk 0:01:28]} 29. Bc1 {[%clk 0:00:48]}  Nd4 {[%clk 0:01:24]} 30. Ba6 {[%clk 0:00:48]}  Bb8 {[%clk 0:01:21]} 31. Ra8 {[%clk 0:00:43]}  Rf8 {[%clk 0:01:19]} 32. Bb2 {[%clk 0:00:42]}  Ne6 {[%clk 0:01:15]} 33. g3 {[%clk 0:00:40]}  Nxc5 {[%clk 0:01:09]} 34. Rc1 {[%clk 0:00:32]}  Bd6 {[%clk 0:00:45]} 35. Rxf8+ {[%clk 0:00:26]}  Bxf8 {[%clk 0:00:45]} 36. Bf1 {[%clk 0:00:25]}  Na4 {[%clk 0:00:45]} 37. Bd4 {[%clk 0:00:23]}  c5 {[%clk 0:00:44]} 38. Bf2 {[%clk 0:00:23]}  d4 {[%clk 0:00:35]} 39. Bc4+ {[%clk 0:00:17]}  Kg7 {[%clk 0:00:35]} 40. Ra1 {[%clk 0:00:15]}  Nc3 {[%clk 0:00:33]} 41. Ra7+ {[%clk 0:00:16]}  Kg6 {[%clk 0:00:32]} 42. Ra6+ {[%clk 0:00:15]}  Kg7 {[%clk 0:00:31]} 43. Ra7+ {[%clk 0:00:14]}  Kg6 {[%clk 0:00:31]} 44. Rd7 {[%clk 0:00:12]}  Bf5 {[%clk 0:00:25]} 45. Rc7 {[%clk 0:00:10]}  Ne4 {[%clk 0:00:24]} 46. Be1 {[%clk 0:00:10]}  Bd6 {[%clk 0:00:23]} 47. Rc6 {[%clk 0:00:10]}  Bd7 {[%clk 0:00:23]} 48. Ra6 {[%clk 0:00:10]}  Bc8 {[%clk 0:00:23]} 49. Rb6 {[%clk 0:00:10]}  Kg7 {[%clk 0:00:22]} 50. Bd3 {[%clk 0:00:09]}  Bc7 {[%clk 0:00:06]} 51. Rc6 {[%clk 0:00:10]} 1-0


[Site "https://www.chess.com"]

[Event "Titled Tuesday Blitz July 18 Early 2023"]
[White "Zaragatski, Ilja"]
[Black "Maximov, Dmitry"]
[WhiteFideId "4655192"]
[BlackFideId "14105659"]
[WhiteElo "2579"]
[BlackElo "2771"]
[Result "1-0"]
[Round "3"]
[TimeControl "180+2"]
[Date "2023.07.18"]
[WhiteClock "0:00:02"]
[BlackClock "0:00:00"]
[Board "40"]

1. Nf3 {[%clk 0:03:00]}  Nf6 {[%clk 0:02:58]} 2. g3 {[%clk 0:03:01]}  g6 {[%clk 0:02:59]} 3. b3 {[%clk 0:03:01]}  Bg7 {[%clk 0:02:59]} 4. Bb2 {[%clk 0:03:02]}  O-O {[%clk 0:02:59]} 5. Bg2 {[%clk 0:03:02]}  d6 {[%clk 0:03:00]} 6. d4 {[%clk 0:03:02]}  Nfd7 {[%clk 0:03:00]} 7. O-O {[%clk 0:03:02]}  e5 {[%clk 0:03:00]} 8. dxe5 {[%clk 0:03:03]}  dxe5 {[%clk 0:03:00]} 9. Nfd2 {[%clk 0:02:43]}  f5 {[%clk 0:02:55]} 10. e4 {[%clk 0:02:39]}  f4 {[%clk 0:02:54]} 11. Nc4 {[%clk 0:02:34]}  Nc6 {[%clk 0:02:51]} 12. Bh3 {[%clk 0:02:22]}  Kh8 {[%clk 0:02:41]} 13. a4 {[%clk 0:02:13]}  Nb6 {[%clk 0:02:00]} 14. Bxc8 {[%clk 0:02:01]}  Qxc8 {[%clk 0:01:55]} 15. Nxb6 {[%clk 0:01:58]}  axb6 {[%clk 0:01:33]} 16. f3 {[%clk 0:01:50]}  fxg3 {[%clk 0:01:30]} 17. hxg3 {[%clk 0:01:50]}  Qh3 {[%clk 0:01:30]} 18. Qe1 {[%clk 0:01:45]}  Rad8 {[%clk 0:01:29]} 19. Qf2 {[%clk 0:01:30]}  Bh6 {[%clk 0:01:21]} 20. Re1 {[%clk 0:00:59]}  Kg8 {[%clk 0:01:14]} 21. Qg2 {[%clk 0:00:56]}  Qe6 {[%clk 0:01:04]} 22. Nc3 {[%clk 0:00:40]}  Nd4 {[%clk 0:01:03]} 23. Rf1 {[%clk 0:00:33]}  Be3+ {[%clk 0:00:57]} 24. Kh1 {[%clk 0:00:33]}  g5 {[%clk 0:00:57]} 25. Nd5 {[%clk 0:00:26]}  Qh6+ {[%clk 0:00:41]} 26. Qh2 {[%clk 0:00:26]}  Qxh2+ {[%clk 0:00:41]} 27. Kxh2 {[%clk 0:00:26]}  Nxc2 {[%clk 0:00:39]} 28. Rad1 {[%clk 0:00:18]}  Bd4 {[%clk 0:00:28]} 29. Bc1 {[%clk 0:00:12]}  c6 {[%clk 0:00:23]} 30. Ne7+ {[%clk 0:00:08]}  Kf7 {[%clk 0:00:23]} 31. Bxg5 {[%clk 0:00:08]}  Rd7 {[%clk 0:00:23]} 32. Nf5 {[%clk 0:00:07]}  Kg6 {[%clk 0:00:21]} 33. f4 {[%clk 0:00:07]}  h6 {[%clk 0:00:17]} 34. Bh4 {[%clk 0:00:08]}  exf4 {[%clk 0:00:10]} 35. gxf4 {[%clk 0:00:08]}  Kh7 {[%clk 0:00:09]} 36. Nxd4 {[%clk 0:00:07]}  Nxd4 {[%clk 0:00:08]} 37. f5 {[%clk 0:00:06]}  c5 {[%clk 0:00:04]} 38. Kh3 {[%clk 0:00:06]}  Rg7 {[%clk 0:00:04]} 39. f6 {[%clk 0:00:04]}  Rgf7 {[%clk 0:00:03]} 40. e5 {[%clk 0:00:05]}  Re8 {[%clk 0:00:03]} 41. Rde1 {[%clk 0:00:03]}  Re6 {[%clk 0:00:04]} 42. Bf2 {[%clk 0:00:02]}  Nxb3 {[%clk 0:00:04]} 43. Kg4 {[%clk 0:00:02]}  Nd2 {[%clk 0:00:04]} 44. Rg1 {[%clk 0:00:01]}  Nc4 {[%clk 0:00:04]} 45. Kf5 {[%clk 0:00:02]}  Re8 {[%clk 0:00:02]} 46. Rh1 {[%clk 0:00:02]}  Rff8 {[%clk 0:00:00]} 47. Be3 {[%clk 0:00:02]} 1-0


[Site "https://www.chess.com"]